[Event "23rd ETCC Women 2021"]
[Site "Catez"]
[Date "2021.11.12"]
[Round "1.53"]
[White "Ptacnikova, Lenka"]
[Black "Peng, Zhaoqin"]
[Result "0-1"]
[ECO "C08"]
[WhiteElo "2200"]
[BlackElo "2351"]
[Annotator "NA"]
[PlyCount "66"]
[EventDate "2021.11.08"]
[EventType "team-tourn"]
[EventCountry "SLO"]
[SourceTitle "playchess.com"]
[Source "ChessBase"]
[SourceQuality "1"]
[WhiteTeam "Iceland"]
[BlackTeam "Netherlands"]
[WhiteTeamCountry "ISL"]
[BlackTeamCountry "NED"]
[TimeControl "40/5400+30:1800+30"]

1. e4 {[%emt 0:00:08]} e6 {[%emt 0:00:06]} 2. d4 {[%emt 0:00:07]} d5 {[%emt 0:
00:06]} 3. Nd2 {[%emt 0:00:07]} a6 {[%emt 0:00:06]} 4. Ngf3 {[%emt 0:00:41]} c5
{[%emt 0:00:18]} 5. exd5 {[%emt 0:00:41]} exd5 {[%emt 0:00:08]} 6. c4 {[%emt 0:
00:31]} Nf6 {[%emt 0:03:30]} 7. cxd5 {[%emt 0:02:46]} Nxd5 {[%emt 0:03:13]} 8.
Bc4 {[%emt 0:03:52]} Qe7+ {[%emt 0:04:09]} 9. Qe2 {[%emt 0:01:26]} Qxe2+ {
[%emt 0:05:57]} 10. Bxe2 {[%emt 0:00:36]} Nc6 {[%emt 0:03:43]} 11. O-O {
[%emt 0:02:47]} cxd4 {[%emt 0:11:54]} 12. Nb3 {[%emt 0:00:47]} Bg4 {[%emt 0:03:
10]} 13. Nfxd4 {[%emt 0:09:34]} Bxe2 {[%emt 0:02:51]} 14. Re1 {[%emt 0:13:08]}
Nxd4 {[%emt 0:04:00]} 15. Nxd4 {[%emt 0:00:57]} O-O-O {[%emt 0:00:42]} 16. Rxe2
{[%emt 0:01:46]} Bc5 {[%emt 0:03:42]} 17. Rc2 {[%emt 0:00:50]} b6 {[%emt 0:04:
44]} 18. Bd2 {[%emt 0:13:08]} Kb7 {[%emt 0:01:25]} 19. Nb3 {[%emt 0:00:12]} Be7
{[%emt 0:04:41]} 20. Rac1 {[%emt 0:07:58]} Bf6 {[%emt 0:00:15]} 21. a4 {
[%emt 0:08:03]} Rc8 {[%emt 0:06:17]} 22. a5 {[%emt 0:00:55]} Rxc2 {[%emt 0:00:
29]} 23. Rxc2 {[%emt 0:07:52]} Rc8 {[%emt 0:01:43]} 24. Rxc8 {[%emt 0:00:08]}
Kxc8 {[%emt 0:00:02]} 25. axb6 {[%emt 0:00:13]} Nxb6 {[%emt 0:14:19]} 26. Nc5 {
[%emt 0:00:13]} Nc4 {[%emt 0:00:18]} 27. Be1 {[%emt 0:00:40]} Nxb2 {[%emt 0:02:
44]} 28. Nxa6 {[%emt 0:03:06]} Nd3 {[%emt 0:00:19]} 29. Bb4 {[%emt 0:04:09]}
Bd4 {[%emt 0:00:45]} 30. Bf8 {[%emt 0:00:54]} Nxf2 {[%emt 0:02:11]} 31. Bxg7 {
[%emt 0:03:49]} Nh3+ {[%emt 0:02:29]} 32. Kf1 {[%emt 0:00:48]} Bxg7 {[%emt 0:
00:06]} 33. gxh3 {[%emt 0:00:04]} Bf8 {[%emt 0:00:08]} 0-1

[Event "23rd ETCC Women 2021"]
[Site "Catez"]
[Date "2021.11.12"]
[Round "1.54"]
[White "Roebers, Eline"]
[Black "Thorsteinsdottir, Hallgerdur"]
[Result "1-0"]
[ECO "B11"]
[WhiteElo "2304"]
[BlackElo "2010"]
[Annotator "NA"]
[PlyCount "97"]
[EventDate "2021.11.08"]
[EventType "team-tourn"]
[EventCountry "SLO"]
[SourceTitle "playchess.com"]
[Source "ChessBase"]
[SourceQuality "1"]
[WhiteTeam "Netherlands"]
[BlackTeam "Iceland"]
[WhiteTeamCountry "NED"]
[BlackTeamCountry "ISL"]
[TimeControl "40/5400+30:1800+30"]

1. e4 {[%emt 0:00:03]} c6 {[%emt 0:00:11]} 2. Nc3 {[%emt 0:00:06]} d5 {[%emt 0:
00:18]} 3. Nf3 {[%emt 0:00:03]} dxe4 {[%emt 0:00:32]} 4. Nxe4 {[%emt 0:00:23]}
Nf6 {[%emt 0:00:27]} 5. Qe2 {[%emt 0:00:12]} Nxe4 {[%emt 0:00:28]} 6. Qxe4 {
[%emt 0:00:07]} Qa5 {[%emt 0:00:33]} 7. Bc4 {[%emt 0:01:25]} Bf5 {[%emt 0:01:
08]} 8. Qf4 {[%emt 0:00:52]} e6 {[%emt 0:06:26]} 9. O-O {[%emt 0:03:47]} Be7 {
[%emt 0:03:49]} 10. Re1 {[%emt 0:03:37]} O-O {[%emt 0:04:07]} 11. c3 {[%emt 0:
00:48]} Bg6 {[%emt 0:02:38]} 12. d4 {[%emt 0:00:52]} Nd7 {[%emt 0:05:40]} 13.
Qg3 {[%emt 0:05:20]} Nb6 {[%emt 0:07:45]} 14. Bb3 {[%emt 0:04:13]} Nd5 {
[%emt 0:03:16]} 15. Ne5 {[%emt 0:01:05]} Rad8 {[%emt 0:03:23]} 16. Bd2 {
[%emt 0:04:19]} Bd6 {[%emt 0:07:21]} 17. Nc4 {[%emt 0:03:55]} Qc7 {[%emt 0:05:
03]} 18. Nxd6 {[%emt 0:00:04]} Qxd6 {[%emt 0:00:12]} 19. Qxd6 {[%emt 0:00:23]}
Rxd6 {[%emt 0:00:42]} 20. c4 {[%emt 0:00:03]} Nf6 {[%emt 0:02:48]} 21. Bb4 {
[%emt 0:00:13]} Rxd4 {[%emt 0:00:59]} 22. Bxf8 {[%emt 0:00:08]} Kxf8 {[%emt 0:
00:12]} 23. Rad1 {[%emt 0:00:02]} Rxd1 {[%emt 0:02:45]} 24. Rxd1 {[%emt 0:00:
55]} Ke7 {[%emt 0:00:12]} 25. f3 {[%emt 0:00:16]} Nd7 {[%emt 0:00:59]} 26. Rd2
{[%emt 0:01:48]} Ne5 {[%emt 0:02:17]} 27. Kf2 {[%emt 0:01:19]} f6 {[%emt 0:06:
48]} 28. f4 {[%emt 0:05:17]} Nd7 {[%emt 0:02:25]} 29. Bc2 {[%emt 0:00:23]} Bxc2
{[%emt 0:04:02]} 30. Rxc2 {[%emt 0:00:04]} c5 {[%emt 0:01:42]} 31. Rc3 {
[%emt 0:01:25]} Nb8 {[%emt 0:00:54]} 32. Rg3 {[%emt 0:00:59]} Kf7 {[%emt 0:01:
08]} 33. Rh3 {[%emt 0:00:21]} h6 {[%emt 0:00:35]} 34. Rd3 {[%emt 0:00:52]} Ke7
{[%emt 0:00:33]} 35. Kg3 {[%emt 0:01:15]} Nc6 {[%emt 0:02:24]} 36. Kg4 {
[%emt 0:02:35]} g6 {[%emt 0:05:10]} 37. Kf3 {[%emt 0:04:39]} b6 {[%emt 0:02:20]
} 38. g4 {[%emt 0:01:52]} Nb4 {[%emt 0:02:09]} 39. Ra3 {[%emt 0:01:00]} Nc6 {
[%emt 0:00:22]} 40. Kf2 {[%emt 0:02:21]} e5 {[%emt 0:04:01]} 41. fxe5 {[%emt 0:
32:37]} Nxe5 {[%emt 0:32:43]} 42. Rxa7+ {[%emt 0:00:04]} Ke6 {[%emt 0:00:12]}
43. Ra6 {[%emt 0:00:42]} Nxg4+ {[%emt 0:00:48]} 44. Kg3 {[%emt 0:00:05]} Ne3 {
[%emt 0:00:15]} 45. Rxb6+ {[%emt 0:00:07]} Ke5 {[%emt 0:00:08]} 46. b3 {
[%emt 0:00:10]} g5 {[%emt 0:00:37]} 47. a4 {[%emt 0:00:35]} f5 {[%emt 0:00:05]}
48. a5 {[%emt 0:00:04]} f4+ {[%emt 0:00:10]} 49. Kf2 {[%emt 0:00:06]} 1-0

[Event "23rd ETCC Women 2021"]
[Site "Catez"]
[Date "2021.11.12"]
[Round "1.55"]
[White "Johannsdottir, Johanna Bjorg"]
[Black "Van Foreest, Machteld"]
[Result "0-1"]
[ECO "C00"]
[WhiteElo "1952"]
[BlackElo "2141"]
[Annotator "NA"]
[PlyCount "68"]
[EventDate "2021.11.08"]
[EventType "team-tourn"]
[EventCountry "SLO"]
[SourceTitle "playchess.com"]
[Source "ChessBase"]
[SourceQuality "1"]
[WhiteTeam "Iceland"]
[BlackTeam "Netherlands"]
[WhiteTeamCountry "ISL"]
[BlackTeamCountry "NED"]
[TimeControl "40/5400+30:1800+30"]

1. e4 {[%emt 0:00:03]} c5 {[%emt 0:00:03]} 2. Nf3 {[%emt 0:00:06]} e6 {[%emt 0:
00:08]} 3. g3 {[%emt 0:02:30]} Nc6 {[%emt 0:06:15]} 4. Bg2 {[%emt 0:00:27]} Nf6
{[%emt 0:01:30]} 5. Qe2 {[%emt 0:01:53]} Be7 {[%emt 0:03:02]} 6. O-O {[%emt 0:
01:32]} h6 {[%emt 0:07:04]} 7. c3 {[%emt 0:05:11]} d5 {[%emt 0:04:25]} 8. e5 {
[%emt 0:07:16]} Nd7 {[%emt 0:01:40]} 9. d4 {[%emt 0:00:14]} b6 {[%emt 0:10:12]}
10. Na3 {[%emt 0:03:52]} a5 {[%emt 0:08:08]} 11. Rd1 {[%emt 0:04:32]} Ba6 {
[%emt 0:00:48]} 12. Qe3 {[%emt 0:04:16]} Qc8 {[%emt 0:08:42]} 13. Qf4 {[%emt 0:
06:08]} b5 {[%emt 0:08:35]} 14. Qg4 {[%emt 0:08:41]} Bf8 {[%emt 0:02:16]} 15.
Bf1 {[%emt 0:02:59]} Rb8 {[%emt 0:01:52]} 16. dxc5 {[%emt 0:06:52]} b4 {
[%emt 0:01:54]} 17. Bxa6 {[%emt 0:06:27]} Qxa6 {[%emt 0:00:03]} 18. Nc2 {
[%emt 0:01:59]} bxc3 {[%emt 0:11:38]} 19. bxc3 {[%emt 0:00:18]} Ndxe5 {[%emt 0:
00:44]} 20. Nxe5 {[%emt 0:00:15]} Nxe5 {[%emt 0:00:05]} 21. Qf4 {[%emt 0:01:15]
} Nc6 {[%emt 0:01:15]} 22. Nd4 {[%emt 0:04:14]} Rc8 {[%emt 0:04:54]} 23. Ba3 {
[%emt 0:08:31]} Be7 {[%emt 0:01:04]} 24. Qg4 {[%emt 0:02:56]} O-O {[%emt 0:01:
32]} 25. Nf3 {[%emt 0:08:27]} Bf6 {[%emt 0:01:19]} 26. Rac1 {[%emt 0:00:29]}
Rfd8 {[%emt 0:01:23]} 27. Rc2 {[%emt 0:05:38]} Rb8 {[%emt 0:01:55]} 28. Bc1 {
[%emt 0:00:22]} Rb1 {[%emt 0:01:02]} 29. Nd4 {[%emt 0:00:17]} Qc4 {[%emt 0:05:
15]} 30. Bxh6 {[%emt 0:02:34]} Ne5 {[%emt 0:01:05]} 31. Qh5 {[%emt 0:01:40]} g6
{[%emt 0:00:35]} 32. Rxb1 {[%emt 0:01:45]} gxh5 {[%emt 0:00:06]} 33. f4 {
[%emt 0:00:29]} Ng4 {[%emt 0:00:08]} 34. Bg5 {[%emt 0:00:26]} Bxd4+ {[%emt 0:
00:11]} 0-1

[Event "23rd ETCC Women 2021"]
[Site "Catez"]
[Date "2021.11.12"]
[Round "1.56"]
[White "Lanchava, Tea"]
[Black "Acevedo Mendez, Lisseth"]
[Result "1-0"]
[ECO "A28"]
[WhiteElo "2215"]
[BlackElo "1803"]
[Annotator "NA"]
[PlyCount "67"]
[EventDate "2021.11.08"]
[EventType "team-tourn"]
[EventCountry "SLO"]
[SourceTitle "playchess.com"]
[Source "ChessBase"]
[SourceQuality "1"]
[WhiteTeam "Netherlands"]
[BlackTeam "Iceland"]
[WhiteTeamCountry "NED"]
[BlackTeamCountry "ISL"]
[TimeControl "40/5400+30:1800+30"]

1. c4 {[%emt 0:00:16]} e5 {[%emt 0:00:23]} 2. Nc3 {[%emt 0:00:53]} Nf6 {
[%emt 0:00:13]} 3. Nf3 {[%emt 0:00:52]} Nc6 {[%emt 0:00:07]} 4. e3 {[%emt 0:01:
58]} d5 {[%emt 0:04:27]} 5. cxd5 {[%emt 0:00:31]} Nxd5 {[%emt 0:00:05]} 6. Bb5
{[%emt 0:00:21]} Nxc3 {[%emt 0:08:25]} 7. bxc3 {[%emt 0:03:36]} Bd7 {[%emt 0:
04:35]} 8. d4 {[%emt 0:03:17]} e4 {[%emt 0:14:43]} 9. Bxc6 {[%emt 0:03:36]}
bxc6 {[%emt 0:07:16]} 10. Ne5 {[%emt 0:04:19]} Bd6 {[%emt 0:05:57]} 11. Nxd7 {
[%emt 0:03:04]} Qxd7 {[%emt 0:00:05]} 12. O-O {[%emt 0:03:09]} O-O {[%emt 0:00:
49]} 13. c4 {[%emt 0:01:52]} Rfd8 {[%emt 0:04:25]} 14. Qc2 {[%emt 0:02:13]} Qe6
{[%emt 0:02:46]} 15. c5 {[%emt 0:01:57]} Be7 {[%emt 0:04:56]} 16. Bd2 {[%emt 0:
01:32]} Rd5 {[%emt 0:02:55]} 17. f3 {[%emt 0:03:31]} exf3 {[%emt 0:04:18]} 18.
Rxf3 {[%emt 0:00:09]} Rad8 {[%emt 0:00:14]} 19. Ba5 {[%emt 0:06:02]} Qd7 {
[%emt 0:02:36]} 20. Raf1 {[%emt 0:04:51]} Bg5 {[%emt 0:01:50]} 21. Qf2 {
[%emt 0:01:03]} f6 {[%emt 0:00:10]} 22. Qg3 {[%emt 0:00:32]} Qe7 {[%emt 0:01:
26]} 23. h4 {[%emt 0:03:24]} Bh6 {[%emt 0:01:31]} 24. Bxc7 {[%emt 0:00:24]} Re8
{[%emt 0:02:45]} 25. Bd6 {[%emt 0:02:08]} Qe4 {[%emt 0:01:35]} 26. Rxf6 {
[%emt 0:04:46]} Qxe3+ {[%emt 0:00:23]} 27. Kh1 {[%emt 0:00:08]} Rxd6 {[%emt 0:
08:50]} 28. Qxe3 {[%emt 0:00:10]} Bxe3 {[%emt 0:00:04]} 29. Rxd6 {[%emt 0:00:
12]} Rc8 {[%emt 0:00:13]} 30. Rf3 {[%emt 0:01:18]} Bd2 {[%emt 0:01:11]} 31. Rd7
{[%emt 0:00:44]} a5 {[%emt 0:02:26]} 32. Rff7 {[%emt 0:06:33]} Bh6 {[%emt 0:00:
52]} 33. g4 {[%emt 0:00:57]} Be3 {[%emt 0:06:58]} 34. Rxg7+ {[%emt 0:00:09]}
1-0

[Event "23rd ETCC Women 2021"]
[Site "Catez"]
[Date "2021.11.12"]
[Round "1.57"]
[White "Urh, Zala"]
[Black "Goossens, Hanne"]
[Result "1/2-1/2"]
[ECO "A58"]
[WhiteElo "2332"]
[BlackElo "2126"]
[Annotator "ChessBase"]
[PlyCount "112"]
[EventDate "2021.11.08"]
[EventType "team-tourn"]
[EventCountry "SLO"]
[SourceTitle "playchess.com"]
[Source "ChessBase"]
[SourceQuality "1"]
[WhiteTeam "Slovenia"]
[BlackTeam "Belgium"]
[WhiteTeamCountry "SLO"]
[BlackTeamCountry "BEL"]
[TimeControl "40/5400+30:1800+30"]

1. d4 {[%emt 0:00:09]} Nf6 {[%emt 0:00:09]} 2. c4 {[%emt 0:00:13]} g6 {[%emt 0:
00:08]} 3. g3 {[%emt 0:00:10]} c5 {[%emt 0:00:46]} 4. d5 {[%emt 0:02:39]} b5 {
[%emt 0:00:29]} 5. cxb5 {[%emt 0:01:25]} a6 {[%emt 0:00:19]} 6. bxa6 {[%emt 0:
02:04]} Bg7 {[%emt 0:00:46]} 7. Nc3 {[%emt 0:01:14]} O-O {[%emt 0:02:37]} 8.
Nf3 {[%emt 0:08:33]} d6 {[%emt 0:00:37]} 9. Bg2 {[%emt 0:01:34]} Nbd7 {[%emt 0:
00:38]} 10. O-O {[%emt 0:01:44]} Nb6 {[%emt 0:01:02]} 11. e4 {[%emt 0:04:56]}
Bxa6 {[%emt 0:02:09]} 12. Re1 {[%emt 0:00:12]} Nfd7 {[%emt 0:00:59]} 13. Qc2 {
[%emt 0:03:29]} Nc4 {[%emt 0:02:09]} 14. Bf1 {[%emt 0:12:46]} Nde5 {[%emt 0:05:
27]} 15. Nxe5 {[%emt 0:00:36]} Nxe5 {[%emt 0:00:20]} 16. Kg2 {[%emt 0:00:13]}
Qa5 {[%emt 0:04:27]} 17. f4 {[%emt 0:03:51]} Bxf1+ {[%emt 0:05:37]} 18. Rxf1 {
[%emt 0:00:11]} Nc4 {[%emt 0:01:30]} 19. Rf3 {[%emt 0:02:19]} Rfb8 {[%emt 0:05:
36]} 20. a4 {[%emt 0:06:03]} Qb4 {[%emt 0:23:51]} 21. Nd1 {[%emt 0:06:01]} Na5
{[%emt 0:03:32]} 22. Raa3 {[%emt 0:02:40]} c4 {[%emt 0:04:19]} 23. Bd2 {
[%emt 0:15:18]} Qc5 {[%emt 0:03:22]} 24. Nc3 {[%emt 0:05:57]} Nb3 {[%emt 0:01:
40]} 25. Be3 {[%emt 0:00:41]} Qb4 {[%emt 0:08:29]} 26. Na2 {[%emt 0:05:03]} Qb7
{[%emt 0:02:13]} 27. Nc3 {[%emt 0:05:42]} Qb4 {[%emt 0:03:55]} 28. Na2 {
[%emt 0:03:03]} Qb7 {[%emt 0:00:17]} 29. Rf2 {[%emt 0:04:48]} Rc8 {[%emt 0:09:
13]} 30. Nc3 {[%emt 0:00:09]} Qb4 {[%emt 0:00:32]} 31. Na2 {[%emt 0:00:02]} Qb7
{[%emt 0:00:29]} 32. Nc1 {[%emt 0:01:23]} Nc5 {[%emt 0:03:10]} 33. a5 {[%emt 0:
00:53]} Qb5 {[%emt 0:01:11]} 34. h4 {[%emt 0:00:47]} Nb7 {[%emt 0:01:44]} 35.
Na2 {[%emt 0:00:35]} Rxa5 {[%emt 0:01:02]} 36. Nc3 {[%emt 0:00:25]} Qa6 {
[%emt 0:00:47]} 37. Rxa5 {[%emt 0:00:14]} Qxa5 {[%emt 0:01:07]} 38. Re2 {
[%emt 0:00:31]} Nc5 {[%emt 0:00:48]} 39. Bxc5 {[%emt 0:00:50]} Qxc5 {[%emt 0:
00:33]} 40. e5 {[%emt 0:00:12]} dxe5 {[%emt 0:01:26]} 41. fxe5 {[%emt 0:30:09]}
e6 {[%emt 0:04:38]} 42. dxe6 {[%emt 0:00:00]} Qc6+ {[%emt 0:08:44]} 43. Qe4 {
[%emt 0:00:00]} Qxe6 {[%emt 0:04:15]} 44. Nd5 {[%emt 0:00:00]} Rc5 {[%emt 0:01:
32]} 45. Nf4 {[%emt 0:00:00]} Qc6 {[%emt 0:03:02]} 46. Qxc6 {[%emt 0:00:00]}
Rxc6 {[%emt 0:00:05]} 47. Kf3 {[%emt 0:00:00]} Rc5 {[%emt 0:02:17]} 48. e6 {
[%emt 0:00:00]} fxe6 {[%emt 0:00:11]} 49. Nxe6 {[%emt 0:00:00]} Rf5+ {[%emt 0:
01:33]} 50. Nf4 {[%emt 0:00:00]} Rb5 {[%emt 0:02:29]} 51. Re8+ {[%emt 0:00:00]}
Kf7 {[%emt 0:01:13]} 52. Rc8 {[%emt 0:00:00]} Rb3+ {[%emt 0:00:42]} 53. Ke4 {
[%emt 0:00:00]} Rxg3 {[%emt 0:01:31]} 54. Rc7+ {[%emt 0:00:39]} Kg8 {[%emt 0:
00:41]} 55. Rc8+ {[%emt 0:04:57]} Kf7 {[%emt 0:00:06]} 56. Rc7+ {[%emt 0:01:25]
} Kg8 {[%emt 0:00:10]} 1/2-1/2

[Event "23rd ETCC Women 2021"]
[Site "Catez"]
[Date "2021.11.12"]
[Round "1.58"]
[White "Barbier, Wiebke"]
[Black "Janzelj, Lara"]
[Result "1-0"]
[ECO "B31"]
[WhiteElo "1964"]
[BlackElo "2150"]
[Annotator "ChessBase"]
[PlyCount "137"]
[EventDate "2021.11.08"]
[EventType "team-tourn"]
[EventCountry "SLO"]
[SourceTitle "playchess.com"]
[Source "ChessBase"]
[SourceQuality "1"]
[WhiteTeam "Belgium"]
[BlackTeam "Slovenia"]
[WhiteTeamCountry "BEL"]
[BlackTeamCountry "SLO"]
[TimeControl "40/5400+30:1800+30"]

1. e4 {[%emt 0:00:02]} c5 {[%emt 0:00:11]} 2. Be2 {[%emt 0:00:13]} Nc6 {
[%emt 0:00:12]} 3. d3 {[%emt 0:00:03]} g6 {[%emt 0:00:22]} 4. f4 {[%emt 0:00:
05]} Bg7 {[%emt 0:00:29]} 5. c3 {[%emt 0:00:22]} d6 {[%emt 0:00:16]} 6. Nf3 {
[%emt 0:00:39]} e6 {[%emt 0:00:14]} 7. O-O {[%emt 0:00:06]} Nge7 {[%emt 0:00:
12]} 8. Qe1 {[%emt 0:01:12]} O-O {[%emt 0:00:27]} 9. Na3 {[%emt 0:00:37]} Rb8 {
[%emt 0:03:58]} 10. Nc2 {[%emt 0:01:48]} f5 {[%emt 0:06:07]} 11. Qh4 {[%emt 0:
04:53]} b5 {[%emt 0:01:51]} 12. Ne3 {[%emt 0:00:51]} b4 {[%emt 0:02:48]} 13.
Bd2 {[%emt 0:00:15]} Qd7 {[%emt 0:04:58]} 14. Rf2 {[%emt 0:20:23]} Ba6 {
[%emt 0:02:58]} 15. g4 {[%emt 0:05:02]} bxc3 {[%emt 0:07:42]} 16. bxc3 {
[%emt 0:02:21]} Rb2 {[%emt 0:11:40]} 17. Rg2 {[%emt 0:22:04]} fxe4 {[%emt 0:15:
42]} 18. Ng5 {[%emt 0:11:33]} h6 {[%emt 0:00:12]} 19. Nxe4 {[%emt 0:00:04]} d5
{[%emt 0:08:19]} 20. Nd1 {[%emt 0:03:58]} Rb5 {[%emt 0:13:23]} 21. Ng3 {
[%emt 0:06:21]} Qb7 {[%emt 0:04:38]} 22. f5 {[%emt 0:06:57]} g5 {[%emt 0:03:15]
} 23. Bxg5 {[%emt 0:02:09]} hxg5 {[%emt 0:00:06]} 24. Qxg5 {[%emt 0:00:02]} Nc8
{[%emt 0:01:09]} 25. fxe6 {[%emt 0:02:52]} Nd8 {[%emt 0:06:33]} 26. e7 {
[%emt 0:05:30]} Nxe7 {[%emt 0:02:10]} 27. Nf5 {[%emt 0:01:26]} Nxf5 {[%emt 0:
00:46]} 28. gxf5 {[%emt 0:00:04]} Qf7 {[%emt 0:01:25]} 29. Ne3 {[%emt 0:00:54]}
Bb7 {[%emt 0:02:09]} 30. Bf3 {[%emt 0:01:19]} Qf6 {[%emt 0:00:29]} 31. Qxf6 {
[%emt 0:00:20]} Rxf6 {[%emt 0:00:01]} 32. Bxd5+ {[%emt 0:00:11]} Kf8 {[%emt 0:
00:22]} 33. Rf1 {[%emt 0:00:58]} Bxd5 {[%emt 0:01:22]} 34. Nxd5 {[%emt 0:00:04]
} Rf7 {[%emt 0:00:20]} 35. f6 {[%emt 0:01:27]} Bh6 {[%emt 0:00:09]} 36. Rg6 {
[%emt 0:00:15]} Rh7 {[%emt 0:00:19]} 37. Re1 {[%emt 0:00:46]} Kf7 {[%emt 0:00:
54]} 38. Rg2 {[%emt 0:00:34]} Bf8 {[%emt 0:00:07]} 39. Rge2 {[%emt 0:00:37]}
Rb7 {[%emt 0:00:45]} 40. Re8 {[%emt 0:00:34]} Rd7 {[%emt 0:00:25]} 41. c4 {
[%emt 0:10:54]} Nc6 {[%emt 0:03:13]} 42. Rc8 {[%emt 0:04:05]} Nd4 {[%emt 0:05:
22]} 43. Re7+ {[%emt 0:05:59]} Bxe7 {[%emt 0:00:06]} 44. fxe7 {[%emt 0:00:06]}
Rg7+ {[%emt 0:02:11]} 45. Kf2 {[%emt 0:00:14]} Rxe7 {[%emt 0:00:18]} 46. Nxe7 {
[%emt 0:00:04]} Kxe7 {[%emt 0:00:11]} 47. Rxc5 {[%emt 0:00:23]} Ke6 {[%emt 0:
00:46]} 48. Ra5 {[%emt 0:02:19]} Rh7 {[%emt 0:01:47]} 49. Ke3 {[%emt 0:02:07]}
Nf5+ {[%emt 0:03:49]} 50. Kf4 {[%emt 0:01:23]} Nd6 {[%emt 0:01:31]} 51. Ra6 {
[%emt 0:00:44]} Rc7 {[%emt 0:01:51]} 52. h4 {[%emt 0:01:06]} Ke7 {[%emt 0:06:
14]} 53. h5 {[%emt 0:02:10]} Nf7 {[%emt 0:00:09]} 54. h6 {[%emt 0:01:07]} Kf8 {
[%emt 0:00:39]} 55. Ke4 {[%emt 0:00:42]} Kg8 {[%emt 0:01:33]} 56. Kd5 {[%emt 0:
01:17]} Rd7+ {[%emt 0:01:02]} 57. Ke4 {[%emt 0:00:28]} Rc7 {[%emt 0:00:25]} 58.
Kd5 {[%emt 0:00:06]} Rd7+ {[%emt 0:00:04]} 59. Ke4 {[%emt 0:01:17]} Rc7 {
[%emt 0:03:02]} 60. Kd4 {[%emt 0:00:35]} Kh7 {[%emt 0:00:20]} 61. c5 {[%emt 0:
00:26]} Nxh6 {[%emt 0:00:24]} 62. c6 {[%emt 0:00:19]} Kg7 {[%emt 0:01:37]} 63.
Kc5 {[%emt 0:00:55]} Kf7 {[%emt 0:02:05]} 64. d4 {[%emt 0:00:06]} Ke7 {[%emt 0:
00:55]} 65. d5 {[%emt 0:00:03]} Nf7 {[%emt 0:00:16]} 66. Ra3 {[%emt 0:00:22]}
Kd8 {[%emt 0:00:51]} 67. Rf3 {[%emt 0:01:24]} Ne5 {[%emt 0:01:42]} 68. Rf8+ {
[%emt 0:00:37]} Ke7 {[%emt 0:00:03]} 69. d6+ {[%emt 0:00:16]} 1-0

[Event "23rd ETCC Women 2021"]
[Site "Catez"]
[Date "2021.11.12"]
[Round "1.59"]
[White "Rozman, Monika"]
[Black "Vanduyfhuys, Daria"]
[Result "0-1"]
[ECO "B96"]
[WhiteElo "2112"]
[BlackElo "1933"]
[Annotator "NA"]
[PlyCount "60"]
[EventDate "2021.11.08"]
[EventType "team-tourn"]
[EventCountry "SLO"]
[SourceTitle "playchess.com"]
[Source "ChessBase"]
[SourceQuality "1"]
[WhiteTeam "Slovenia"]
[BlackTeam "Belgium"]
[WhiteTeamCountry "SLO"]
[BlackTeamCountry "BEL"]
[TimeControl "40/5400+30:1800+30"]

1. e4 {[%emt 0:00:03]} c5 {[%emt 0:00:10]} 2. Nf3 {[%emt 0:00:08]} d6 {[%emt 0:
00:07]} 3. d4 {[%emt 0:00:25]} cxd4 {[%emt 0:00:06]} 4. Nxd4 {[%emt 0:00:04]}
Nf6 {[%emt 0:00:06]} 5. Nc3 {[%emt 0:00:15]} a6 {[%emt 0:00:07]} 6. Bg5 {
[%emt 0:05:13]} e6 {[%emt 0:00:17]} 7. f4 {[%emt 0:00:51]} Nbd7 {[%emt 0:02:14]
} 8. Qf3 {[%emt 0:01:03]} Qc7 {[%emt 0:00:44]} 9. O-O-O {[%emt 0:01:23]} b5 {
[%emt 0:01:20]} 10. Bd3 {[%emt 0:01:30]} b4 {[%emt 0:02:03]} 11. Nce2 {[%emt 0:
02:01]} Bb7 {[%emt 0:01:42]} 12. Rhe1 {[%emt 0:01:09]} Be7 {[%emt 0:01:14]} 13.
Kb1 {[%emt 0:04:05]} O-O {[%emt 0:07:43]} 14. Qh3 {[%emt 0:09:22]} Nc5 {
[%emt 0:19:58]} 15. Ng3 {[%emt 0:07:35]} Nxd3 {[%emt 0:03:48]} 16. Rxd3 {
[%emt 0:02:13]} Rac8 {[%emt 0:03:08]} 17. e5 {[%emt 0:05:46]} dxe5 {[%emt 0:02:
24]} 18. fxe5 {[%emt 0:01:27]} Nd5 {[%emt 0:20:13]} 19. Bd2 {[%emt 0:08:41]}
Bc5 {[%emt 0:02:28]} 20. Nf3 {[%emt 0:01:53]} Be3 {[%emt 0:08:11]} 21. c3 {
[%emt 0:17:24]} Bxd2 {[%emt 0:14:24]} 22. Rxd2 {[%emt 0:00:31]} bxc3 {[%emt 0:
00:05]} 23. Rc2 {[%emt 0:02:17]} Qa5 {[%emt 0:00:18]} 24. Ng5 {[%emt 0:09:33]}
h6 {[%emt 0:00:27]} 25. N3e4 {[%emt 0:00:03]} Nb4 {[%emt 0:03:32]} 26. Nf6+ {
[%emt 0:01:35]} gxf6 {[%emt 0:00:13]} 27. b3 {[%emt 0:01:41]} hxg5 {[%emt 0:00:
16]} 28. exf6 {[%emt 0:00:30]} Qf5 {[%emt 0:00:21]} 29. Qxf5 {[%emt 0:00:34]}
exf5 {[%emt 0:00:05]} 30. g4 {[%emt 0:00:59]} Be4 {[%emt 0:00:44]} 0-1